[Event "Titled Tuesday Blitz June 20 Late 2023"]
[White "Sai Han Thiha"]
[Black "Vargas, Mauricio"]
[WhiteFideId "13012290"]
[BlackFideId "4404572"]
[WhiteElo "1953"]
[BlackElo "1986"]
[Result "1-0"]
[Round "10"]
[TimeControl "180+2"]
[Date "2023.06.20"]
[WhiteClock "0:00:39"]
[BlackClock "0:00:00"]
[Board "111"]

1. d4 {[%clk 0:03:00]}  d5 {[%clk 0:00:52]} 2. Nf3 {[%clk 0:02:57]}  c6 {[%clk 0:00:53]} 3. Bf4 {[%clk 0:02:51]}  f6 {[%clk 0:00:54]} 4. h4 {[%clk 0:02:44]}  Nd7 {[%clk 0:00:52]} 5. e3 {[%clk 0:02:40]}  e6 {[%clk 0:00:51]} 6. c4 {[%clk 0:02:39]}  Bb4+ {[%clk 0:00:50]} 7. Nc3 {[%clk 0:02:33]}  Bxc3+ {[%clk 0:00:49]} 8. bxc3 {[%clk 0:02:32]}  Ne7 {[%clk 0:00:45]} 9. Qc2 {[%clk 0:02:20]}  O-O {[%clk 0:00:45]} 10. Bd3 {[%clk 0:02:15]}  h6 {[%clk 0:00:43]} 11. h5 {[%clk 0:01:57]}  Nb6 {[%clk 0:00:30]} 12. c5 {[%clk 0:01:48]}  Nd7 {[%clk 0:00:27]} 13. Rh3 {[%clk 0:01:42]}  b6 {[%clk 0:00:26]} 14. Rg3 {[%clk 0:01:33]}  bxc5 {[%clk 0:00:25]} 15. Bxh6 {[%clk 0:01:33]}  Rf7 {[%clk 0:00:19]} 16. Bh7+ {[%clk 0:01:23]}  Kh8 {[%clk 0:00:18]} 17. Bg6 {[%clk 0:01:24]}  Nxg6 {[%clk 0:00:16]} 18. hxg6 {[%clk 0:01:17]}  Re7 {[%clk 0:00:16]} 19. Bf4 {[%clk 0:00:58]}  cxd4 {[%clk 0:00:16]} 20. exd4 {[%clk 0:00:53]}  e5 {[%clk 0:00:12]} 21. dxe5 {[%clk 0:00:54]}  Nxe5 {[%clk 0:00:12]} 22. Nxe5 {[%clk 0:00:53]}  fxe5 {[%clk 0:00:11]} 23. Bg5 {[%clk 0:00:53]}  Kg8 {[%clk 0:00:05]} 24. O-O-O {[%clk 0:00:49]}  e4 {[%clk 0:00:04]} 25. Rh1 {[%clk 0:00:48]}  Qd6 {[%clk 0:00:01]} 26. Bxe7 {[%clk 0:00:42]}  Qxe7 {[%clk 0:00:00]} 27. Re3 {[%clk 0:00:39]} 1-0


[Site "https://www.chess.com"]

[Event "Titled Tuesday Blitz June 20 Late 2023"]
[White "Prohorov, Olexandr"]
[Black "Hu, Merric"]
[WhiteFideId "14105578"]
[BlackFideId "30906660"]
[WhiteElo "1977"]
[BlackElo "1922"]
[Result "1/2-1/2"]
[Round "10"]
[TimeControl "180+2"]
[Date "2023.06.20"]
[WhiteClock "0:00:04"]
[BlackClock "0:00:06"]
[Board "112"]

1. e4 {[%clk 0:03:00]}  e6 {[%clk 0:03:00]} 2. Qe2 {[%clk 0:02:58]}  d5 {[%clk 0:02:58]} 3. exd5 {[%clk 0:02:58]}  Qxd5 {[%clk 0:02:59]} 4. Nc3 {[%clk 0:02:57]}  Qa5 {[%clk 0:02:59]} 5. Nf3 {[%clk 0:02:55]}  Nf6 {[%clk 0:02:59]} 6. d4 {[%clk 0:02:55]}  c6 {[%clk 0:02:57]} 7. Bd2 {[%clk 0:02:56]}  Be7 {[%clk 0:02:57]} 8. g3 {[%clk 0:02:56]}  O-O {[%clk 0:02:57]} 9. Bg2 {[%clk 0:02:57]}  Nbd7 {[%clk 0:02:56]} 10. O-O {[%clk 0:02:57]}  Qc7 {[%clk 0:02:45]} 11. a3 {[%clk 0:02:56]}  a5 {[%clk 0:02:45]} 12. Rab1 {[%clk 0:02:56]}  a4 {[%clk 0:02:45]} 13. Rfe1 {[%clk 0:02:51]}  b5 {[%clk 0:02:39]} 14. Ne4 {[%clk 0:02:44]}  Nxe4 {[%clk 0:02:33]} 15. Qxe4 {[%clk 0:02:45]}  Nf6 {[%clk 0:02:34]} 16. Qd3 {[%clk 0:02:46]}  Bb7 {[%clk 0:02:26]} 17. Ne5 {[%clk 0:02:38]}  Rad8 {[%clk 0:02:21]} 18. c3 {[%clk 0:01:43]}  Nd7 {[%clk 0:01:31]} 19. Qe4 {[%clk 0:01:36]}  Nxe5 {[%clk 0:01:25]} 20. Qxe5 {[%clk 0:01:36]}  Qxe5 {[%clk 0:01:20]} 21. Rxe5 {[%clk 0:01:37]}  Bf6 {[%clk 0:01:19]} 22. Re2 {[%clk 0:01:30]}  Rd7 {[%clk 0:01:13]} 23. Bf4 {[%clk 0:01:22]}  Rfd8 {[%clk 0:01:08]} 24. h3 {[%clk 0:01:16]}  h6 {[%clk 0:01:04]} 25. g4 {[%clk 0:01:07]}  Rc8 {[%clk 0:01:04]} 26. Rbe1 {[%clk 0:01:04]}  c5 {[%clk 0:01:02]} 27. Bxb7 {[%clk 0:00:59]}  Rxb7 {[%clk 0:01:03]} 28. dxc5 {[%clk 0:01:00]}  Rxc5 {[%clk 0:01:02]} 29. Rd1 {[%clk 0:00:57]}  Rc4 {[%clk 0:00:52]} 30. Bg3 {[%clk 0:00:45]}  g6 {[%clk 0:00:33]} 31. Kg2 {[%clk 0:00:40]}  Kg7 {[%clk 0:00:33]} 32. f4 {[%clk 0:00:37]}  g5 {[%clk 0:00:31]} 33. Rf2 {[%clk 0:00:31]}  Re7 {[%clk 0:00:24]} 34. fxg5 {[%clk 0:00:26]}  Bxg5 {[%clk 0:00:23]} 35. h4 {[%clk 0:00:26]}  Be3 {[%clk 0:00:22]} 36. Re2 {[%clk 0:00:24]}  Bc5 {[%clk 0:00:18]} 37. Kh3 {[%clk 0:00:21]}  f6 {[%clk 0:00:17]} 38. Bd6 {[%clk 0:00:16]}  Bxd6 {[%clk 0:00:15]} 39. Rxd6 {[%clk 0:00:17]}  e5 {[%clk 0:00:16]} 40. Kg3 {[%clk 0:00:12]}  Rc5 {[%clk 0:00:15]} 41. Rf2 {[%clk 0:00:08]}  Rf7 {[%clk 0:00:16]} 42. Re6 {[%clk 0:00:07]}  Kf8 {[%clk 0:00:13]} 43. h5 {[%clk 0:00:07]}  Kg7 {[%clk 0:00:13]} 44. Re8 {[%clk 0:00:06]}  Rd5 {[%clk 0:00:13]} 45. Rf3 {[%clk 0:00:05]}  Rfd7 {[%clk 0:00:12]} 46. Re6 {[%clk 0:00:04]}  R7d6 {[%clk 0:00:12]} 47. Re7+ {[%clk 0:00:04]}  Kf8 {[%clk 0:00:12]} 48. Rh7 {[%clk 0:00:03]}  Kg8 {[%clk 0:00:12]} 49. Rxh6 {[%clk 0:00:03]}  Kg7 {[%clk 0:00:12]} 50. Rg6+ {[%clk 0:00:04]}  Kf7 {[%clk 0:00:12]} 51. g5 {[%clk 0:00:03]}  e4 {[%clk 0:00:08]} 52. Rgxf6+ {[%clk 0:00:04]}  Rxf6 {[%clk 0:00:08]} 53. Rxf6+ {[%clk 0:00:04]}  Kg7 {[%clk 0:00:09]} 54. Re6 {[%clk 0:00:04]}  Rxg5+ {[%clk 0:00:09]} 55. Kh4 {[%clk 0:00:03]}  Rg2 {[%clk 0:00:09]} 56. Rxe4 {[%clk 0:00:02]}  Rxb2 {[%clk 0:00:10]} 57. Rb4 {[%clk 0:00:03]}  Rb3 {[%clk 0:00:09]} 58. Kg5 {[%clk 0:00:02]}  Rxc3 {[%clk 0:00:09]} 59. Rxb5 {[%clk 0:00:02]}  Rxa3 {[%clk 0:00:09]} 60. Rb7+ {[%clk 0:00:02]}  Kg8 {[%clk 0:00:09]} 61. Kh6 {[%clk 0:00:02]}  Ra1 {[%clk 0:00:08]} 62. Ra7 {[%clk 0:00:03]}  a3 {[%clk 0:00:08]} 63. Ra8+ {[%clk 0:00:03]}  Kf7 {[%clk 0:00:08]} 64. Kh7 {[%clk 0:00:04]}  Rh1 {[%clk 0:00:08]} 65. h6 {[%clk 0:00:04]}  Rh3 {[%clk 0:00:05]} 66. Ra7+ {[%clk 0:00:04]}  Kf6 {[%clk 0:00:06]} 67. Ra6+ {[%clk 0:00:04]}  Kf7 {[%clk 0:00:06]} 68. Kh8 {[%clk 0:00:04]}  a2 {[%clk 0:00:06]} 69. h7 {[%clk 0:00:03]}  Rh2 {[%clk 0:00:05]} 70. Ra7+ {[%clk 0:00:02]}  Kf8 {[%clk 0:00:05]} 71. Ra8+ {[%clk 0:00:03]}  Kf7 {[%clk 0:00:06]} 72. Ra3 {[%clk 0:00:02]}  Kf8 {[%clk 0:00:06]} 73. Ra8+ {[%clk 0:00:02]}  Kf7 {[%clk 0:00:06]} 74. Ra7+ {[%clk 0:00:03]}  Kf6 {[%clk 0:00:07]} 75. Ra6+ {[%clk 0:00:04]}  Ke7 {[%clk 0:00:06]} 76. Ra7+ {[%clk 0:00:04]}  Kf8 {[%clk 0:00:06]} 77. Ra8+ {[%clk 0:00:04]} 1/2-1/2


[Site "https://www.chess.com"]

[Event "Titled Tuesday Blitz June 20 Late 2023"]
[White "Paravyan, David"]
[Black "Firouzja, Alireza"]
[WhiteFideId "4194985"]
[BlackFideId "12573981"]
[WhiteElo "2563"]
[BlackElo "2896"]
[Result "0-1"]
[Round "11"]
[TimeControl "180+2"]
[Date "2023.06.20"]
[WhiteClock "0:02:52"]
[BlackClock "0:02:19"]
[Board "1"]

1. e4 {[%clk 0:03:00]}  c5 {[%clk 0:02:59]} 2. Nf3 {[%clk 0:03:01]}  e6 {[%clk 0:02:59]} 3. d4 {[%clk 0:03:01]}  cxd4 {[%clk 0:03:00]} 4. Nxd4 {[%clk 0:03:02]}  Nc6 {[%clk 0:03:00]} 5. Nc3 {[%clk 0:03:03]}  Qc7 {[%clk 0:03:01]} 6. Nxc6 {[%clk 0:03:03]}  bxc6 {[%clk 0:03:00]} 7. Bd3 {[%clk 0:03:03]}  Ne7 {[%clk 0:02:48]} 8. O-O {[%clk 0:03:00]}  Ng6 {[%clk 0:02:48]} 9. f4 {[%clk 0:02:58]}  Be7 {[%clk 0:02:47]} 10. Qh5 {[%clk 0:02:56]}  Ba6 {[%clk 0:02:21]} 11. Bxa6 {[%clk 0:02:51]}  Qb6+ {[%clk 0:02:20]} 12. Kh1 {[%clk 0:02:51]}  Qxa6 {[%clk 0:02:21]} 13. f5 {[%clk 0:02:52]}  Qxf1# {[%clk 0:02:19]} 0-1


[Site "https://www.chess.com"]

[Event "Titled Tuesday Blitz June 20 Late 2023"]
[White "Babazada, Khazar"]
[Black "Kamsky, Gata"]
[WhiteFideId "13413554"]
[BlackFideId "2000024"]
[WhiteElo "2369"]
[BlackElo "2660"]
[Result "1/2-1/2"]
[Round "11"]
[TimeControl "180+2"]
[Date "2023.06.20"]
[WhiteClock "0:00:08"]
[BlackClock "0:00:14"]
[Board "4"]

1. e4 {[%clk 0:03:00]}  c5 {[%clk 0:02:57]} 2. Nf3 {[%clk 0:03:01]}  e6 {[%clk 0:02:58]} 3. d4 {[%clk 0:03:01]}  cxd4 {[%clk 0:02:58]} 4. Nxd4 {[%clk 0:03:02]}  Nc6 {[%clk 0:02:58]} 5. Nc3 {[%clk 0:03:02]}  Qc7 {[%clk 0:02:59]} 6. f4 {[%clk 0:03:02]}  a6 {[%clk 0:02:52]} 7. Nxc6 {[%clk 0:03:02]}  Qxc6 {[%clk 0:02:48]} 8. Bd3 {[%clk 0:03:01]}  b5 {[%clk 0:02:47]} 9. Qe2 {[%clk 0:03:02]}  Bb7 {[%clk 0:02:45]} 10. Bd2 {[%clk 0:03:02]}  Nf6 {[%clk 0:02:06]} 11. e5 {[%clk 0:02:24]}  Nd5 {[%clk 0:02:05]} 12. Ne4 {[%clk 0:02:19]}  Nb4 {[%clk 0:01:58]} 13. Bxb4 {[%clk 0:02:16]}  Bxb4+ {[%clk 0:01:57]} 14. c3 {[%clk 0:02:17]}  Be7 {[%clk 0:01:58]} 15. O-O {[%clk 0:02:11]}  O-O {[%clk 0:01:51]} 16. Rad1 {[%clk 0:02:08]}  Qb6+ {[%clk 0:01:48]} 17. Kh1 {[%clk 0:02:08]}  Bxe4 {[%clk 0:01:34]} 18. Bxe4 {[%clk 0:02:08]}  Rad8 {[%clk 0:01:34]} 19. Rd3 {[%clk 0:02:00]}  g6 {[%clk 0:01:32]} 20. Rfd1 {[%clk 0:01:11]}  d6 {[%clk 0:01:30]} 21. exd6 {[%clk 0:01:12]}  Rxd6 {[%clk 0:01:29]} 22. Rxd6 {[%clk 0:01:11]}  Bxd6 {[%clk 0:01:30]} 23. Qf3 {[%clk 0:01:08]}  Rd8 {[%clk 0:01:27]} 24. g3 {[%clk 0:01:07]}  a5 {[%clk 0:01:24]} 25. Kg2 {[%clk 0:00:55]}  b4 {[%clk 0:01:21]} 26. cxb4 {[%clk 0:00:52]}  Bxb4 {[%clk 0:01:16]} 27. Rxd8+ {[%clk 0:00:49]}  Qxd8 {[%clk 0:01:16]} 28. Qd3 {[%clk 0:00:50]}  Qf6 {[%clk 0:01:16]} 29. Qc2 {[%clk 0:00:47]}  Qd4 {[%clk 0:01:15]} 30. Bf3 {[%clk 0:00:40]}  Bc5 {[%clk 0:01:12]} 31. Qc3 {[%clk 0:00:38]}  Qf2+ {[%clk 0:01:11]} 32. Kh3 {[%clk 0:00:38]}  Bd4 {[%clk 0:01:10]} 33. Qxa5 {[%clk 0:00:35]}  Kg7 {[%clk 0:01:03]} 34. Qa8 {[%clk 0:00:33]}  Qxb2 {[%clk 0:01:01]} 35. a4 {[%clk 0:00:30]}  h5 {[%clk 0:00:59]} 36. a5 {[%clk 0:00:26]}  Bg1 {[%clk 0:00:51]} 37. Bg2 {[%clk 0:00:27]}  Qb5 {[%clk 0:00:51]} 38. Qe4 {[%clk 0:00:19]}  Qxa5 {[%clk 0:00:50]} 39. Bf3 {[%clk 0:00:11]}  Qd2 {[%clk 0:00:48]} 40. Be2 {[%clk 0:00:10]}  Bd4 {[%clk 0:00:47]} 41. Qd3 {[%clk 0:00:09]}  Qb2 {[%clk 0:00:46]} 42. Kg2 {[%clk 0:00:09]}  Qa1 {[%clk 0:00:43]} 43. Qe4 {[%clk 0:00:08]}  Qg1+ {[%clk 0:00:42]} 44. Kh3 {[%clk 0:00:09]}  Bf6 {[%clk 0:00:40]} 45. Qf3 {[%clk 0:00:08]}  Qe1 {[%clk 0:00:29]} 46. Kg2 {[%clk 0:00:08]}  Qd2 {[%clk 0:00:29]} 47. Qd3 {[%clk 0:00:07]}  Qb2 {[%clk 0:00:29]} 48. Kh3 {[%clk 0:00:06]}  e5 {[%clk 0:00:28]} 49. fxe5 {[%clk 0:00:06]}  Bxe5 {[%clk 0:00:27]} 50. Qf3 {[%clk 0:00:07]}  Qd4 {[%clk 0:00:25]} 51. Bd1 {[%clk 0:00:06]}  Qd7+ {[%clk 0:00:20]} 52. Kg2 {[%clk 0:00:06]}  Qd2+ {[%clk 0:00:19]} 53. Qe2 {[%clk 0:00:07]}  Qd4 {[%clk 0:00:18]} 54. Qf3 {[%clk 0:00:06]}  h4 {[%clk 0:00:18]} 55. Bb3 {[%clk 0:00:06]}  Qd2+ {[%clk 0:00:17]} 56. Kh3 {[%clk 0:00:06]}  f5 {[%clk 0:00:16]} 57. Qd5 {[%clk 0:00:02]}  Qxd5 {[%clk 0:00:14]} 58. Bxd5 {[%clk 0:00:03]}  hxg3 {[%clk 0:00:12]} 59. hxg3 {[%clk 0:00:04]}  Kf6 {[%clk 0:00:12]} 60. g4 {[%clk 0:00:04]}  fxg4+ {[%clk 0:00:12]} 61. Kxg4 {[%clk 0:00:05]}  g5 {[%clk 0:00:12]} 62. Be4 {[%clk 0:00:05]}  Bf4 {[%clk 0:00:12]} 63. Bf5 {[%clk 0:00:06]}  Be5 {[%clk 0:00:12]} 64. Bb1 {[%clk 0:00:07]}  Bf4 {[%clk 0:00:12]} 65. Bc2 {[%clk 0:00:07]}  Be5 {[%clk 0:00:13]} 66. Bb1 {[%clk 0:00:08]}  Bf4 {[%clk 0:00:13]} 67. Bc2 {[%clk 0:00:09]}  Be5 {[%clk 0:00:14]} 68. Bb1 {[%clk 0:00:08]} 1/2-1/2


[Site "https://www.chess.com"]

[Event "Titled Tuesday Blitz June 20 Late 2023"]
[White "Anton Guijarro, David"]
[Black "Grigoriants, Sergey"]
[WhiteFideId "2285525"]
[BlackFideId "4130804"]
[WhiteElo "2618"]
[BlackElo "2502"]
[Result "0-1"]
[Round "11"]
[TimeControl "180+2"]
[Date "2023.06.20"]
[WhiteClock "0:00:00"]
[BlackClock "0:00:03"]
[Board "9"]

1. Nf3 {[%clk 0:03:00]}  d5 {[%clk 0:02:55]} 2. c4 {[%clk 0:03:01]}  d4 {[%clk 0:02:55]} 3. b4 {[%clk 0:03:01]}  c5 {[%clk 0:02:54]} 4. a3 {[%clk 0:02:57]}  Qc7 {[%clk 0:02:49]} 5. g3 {[%clk 0:02:56]}  e5 {[%clk 0:02:49]} 6. Bg2 {[%clk 0:02:56]}  Nf6 {[%clk 0:02:44]} 7. O-O {[%clk 0:02:56]}  Nc6 {[%clk 0:02:31]} 8. b5 {[%clk 0:02:47]}  Nd8 {[%clk 0:02:25]} 9. e3 {[%clk 0:02:41]}  Ne6 {[%clk 0:02:18]} 10. d3 {[%clk 0:02:33]}  Be7 {[%clk 0:02:07]} 11. Re1 {[%clk 0:02:30]}  O-O {[%clk 0:02:02]} 12. exd4 {[%clk 0:02:30]}  exd4 {[%clk 0:02:01]} 13. a4 {[%clk 0:02:29]}  a6 {[%clk 0:01:53]} 14. Na3 {[%clk 0:02:15]}  h6 {[%clk 0:01:47]} 15. Bd2 {[%clk 0:01:58]}  Bd6 {[%clk 0:01:47]} 16. bxa6 {[%clk 0:01:54]}  Rxa6 {[%clk 0:01:42]} 17. Nb5 {[%clk 0:01:54]}  Qd8 {[%clk 0:01:39]} 18. Nxd6 {[%clk 0:01:52]}  Qxd6 {[%clk 0:01:38]} 19. a5 {[%clk 0:01:50]}  b6 {[%clk 0:01:22]} 20. Ne5 {[%clk 0:01:47]}  bxa5 {[%clk 0:01:19]} 21. Rxa5 {[%clk 0:01:46]}  Rxa5 {[%clk 0:01:15]} 22. Bxa5 {[%clk 0:01:47]}  Nd7 {[%clk 0:01:09]} 23. Nc6 {[%clk 0:01:14]}  Nb8 {[%clk 0:01:09]} 24. Qf3 {[%clk 0:01:02]}  Ng5 {[%clk 0:00:25]} 25. Qd5 {[%clk 0:00:30]}  Qxc6 {[%clk 0:00:15]} 26. Qxc6 {[%clk 0:00:30]}  Nxc6 {[%clk 0:00:15]} 27. Bxc6 {[%clk 0:00:31]}  Bg4 {[%clk 0:00:14]} 28. f4 {[%clk 0:00:05]}  Nf3+ {[%clk 0:00:13]} 29. Bxf3 {[%clk 0:00:06]}  Bxf3 {[%clk 0:00:14]} 30. Kf2 {[%clk 0:00:06]}  Bg4 {[%clk 0:00:12]} 31. Bb6 {[%clk 0:00:06]}  Rb8 {[%clk 0:00:11]} 32. Bxc5 {[%clk 0:00:06]}  Rb2+ {[%clk 0:00:11]} 33. Kg1 {[%clk 0:00:06]}  Rd2 {[%clk 0:00:09]} 34. Bxd4 {[%clk 0:00:05]}  Rxd3 {[%clk 0:00:10]} 35. Bf2 {[%clk 0:00:05]}  Rc3 {[%clk 0:00:10]} 36. c5 {[%clk 0:00:05]}  Bf3 {[%clk 0:00:09]} 37. h3 {[%clk 0:00:05]}  Rc2 {[%clk 0:00:09]} 38. g4 {[%clk 0:00:06]}  h5 {[%clk 0:00:09]} 39. gxh5 {[%clk 0:00:05]}  Bxh5 {[%clk 0:00:08]} 40. Kg2 {[%clk 0:00:05]}  Bg6 {[%clk 0:00:08]} 41. Kg3 {[%clk 0:00:06]}  Bf5 {[%clk 0:00:09]} 42. h4 {[%clk 0:00:05]}  Rc3+ {[%clk 0:00:08]} 43. Be3 {[%clk 0:00:06]}  f6 {[%clk 0:00:08]} 44. Kf3 {[%clk 0:00:06]}  Kf7 {[%clk 0:00:09]} 45. Ra1 {[%clk 0:00:04]}  Kg6 {[%clk 0:00:05]} 46. Rg1+ {[%clk 0:00:04]}  Kf7 {[%clk 0:00:04]} 47. h5 {[%clk 0:00:04]}  Bd7 {[%clk 0:00:04]} 48. Ke4 {[%clk 0:00:03]}  Bc6+ {[%clk 0:00:05]} 49. Kd4 {[%clk 0:00:04]}  Ra3 {[%clk 0:00:04]} 50. Rb1 {[%clk 0:00:04]}  Ra4+ {[%clk 0:00:04]} 51. Kc3 {[%clk 0:00:04]}  Ke6 {[%clk 0:00:05]} 52. Rb8 {[%clk 0:00:04]}  Ra3+ {[%clk 0:00:05]} 53. Kd2 {[%clk 0:00:04]}  Ra2+ {[%clk 0:00:05]} 54. Ke1 {[%clk 0:00:05]}  Ra8 {[%clk 0:00:05]} 55. Rb6 {[%clk 0:00:04]}  Kd5 {[%clk 0:00:06]} 56. Kf2 {[%clk 0:00:03]}  Rh8 {[%clk 0:00:06]} 57. Rb2 {[%clk 0:00:02]}  Rxh5 {[%clk 0:00:06]} 58. Rd2+ {[%clk 0:00:02]}  Kc4 {[%clk 0:00:04]} 59. Rd6 {[%clk 0:00:03]}  Kb5 {[%clk 0:00:04]} 60. Rd8 {[%clk 0:00:03]}  Rd5 {[%clk 0:00:03]} 61. Rg8 {[%clk 0:00:02]}  Rd7 {[%clk 0:00:03]} 62. Rb8+ {[%clk 0:00:02]}  Rb7 {[%clk 0:00:03]} 63. Rd8 {[%clk 0:00:01]}  Rd7 {[%clk 0:00:03]} 64. Rc8 {[%clk 0:00:01]}  Rb7 {[%clk 0:00:03]} 65. f5 {[%clk 0:00:00]}  Re7 {[%clk 0:00:03]} 0-1


[Site "https://www.chess.com"]

[Event "Titled Tuesday Blitz June 20 Late 2023"]
[White "Tari, Aryan"]
[Black "Rastbod, Ali"]
[WhiteFideId "1510045"]
[BlackFideId "12567477"]
[WhiteElo "2586"]
[BlackElo "2281"]
[Result "1-0"]
[Round "11"]
[TimeControl "180+2"]
[Date "2023.06.20"]
[WhiteClock "0:00:06"]
[BlackClock "0:00:00"]
[Board "14"]

1. e4 {[%clk 0:03:00]}  e6 {[%clk 0:02:56]} 2. d4 {[%clk 0:02:55]}  d5 {[%clk 0:02:57]} 3. Nd2 {[%clk 0:02:56]}  Be7 {[%clk 0:02:54]} 4. Ngf3 {[%clk 0:02:55]}  Nf6 {[%clk 0:02:50]} 5. e5 {[%clk 0:02:56]}  Nfd7 {[%clk 0:02:50]} 6. c3 {[%clk 0:02:55]}  c5 {[%clk 0:02:50]} 7. Bd3 {[%clk 0:02:55]}  Nc6 {[%clk 0:02:51]} 8. O-O {[%clk 0:02:55]}  O-O {[%clk 0:02:52]} 9. Re1 {[%clk 0:02:53]}  Qb6 {[%clk 0:02:31]} 10. Nf1 {[%clk 0:02:53]}  cxd4 {[%clk 0:02:31]} 11. cxd4 {[%clk 0:02:52]}  f6 {[%clk 0:02:32]} 12. exf6 {[%clk 0:02:49]}  Nxf6 {[%clk 0:02:33]} 13. Ng3 {[%clk 0:02:44]}  Ng4 {[%clk 0:02:21]} 14. Re2 {[%clk 0:01:58]}  g6 {[%clk 0:02:04]} 15. h3 {[%clk 0:01:49]}  Nxf2 {[%clk 0:01:59]} 16. Rxf2 {[%clk 0:01:44]}  e5 {[%clk 0:01:38]} 17. Bh6 {[%clk 0:01:29]}  Rf7 {[%clk 0:01:27]} 18. Kh1 {[%clk 0:01:27]}  Be6 {[%clk 0:01:09]} 19. Be3 {[%clk 0:00:53]}  e4 {[%clk 0:00:59]} 20. Nxe4 {[%clk 0:00:52]}  dxe4 {[%clk 0:01:00]} 21. Bxe4 {[%clk 0:00:53]}  Rd8 {[%clk 0:00:55]} 22. Qe2 {[%clk 0:00:52]}  Qb4 {[%clk 0:00:49]} 23. Bxc6 {[%clk 0:00:36]}  bxc6 {[%clk 0:00:42]} 24. Bg5 {[%clk 0:00:36]}  Bc4 {[%clk 0:00:37]} 25. Qe3 {[%clk 0:00:36]}  Bxg5 {[%clk 0:00:30]} 26. Qxg5 {[%clk 0:00:37]}  Rdf8 {[%clk 0:00:26]} 27. Qh6 {[%clk 0:00:36]}  Qb7 {[%clk 0:00:23]} 28. Rc2 {[%clk 0:00:22]}  Bd5 {[%clk 0:00:16]} 29. Ne5 {[%clk 0:00:22]}  Rf1+ {[%clk 0:00:16]} 30. Rxf1 {[%clk 0:00:23]}  Rxf1+ {[%clk 0:00:16]} 31. Kh2 {[%clk 0:00:23]}  Qb4 {[%clk 0:00:11]} 32. Qh4 {[%clk 0:00:22]}  Qd6 {[%clk 0:00:07]} 33. Qg3 {[%clk 0:00:14]}  Bxa2 {[%clk 0:00:05]} 34. Nxc6 {[%clk 0:00:07]}  Qxg3+ {[%clk 0:00:03]} 35. Kxg3 {[%clk 0:00:07]}  a6 {[%clk 0:00:02]} 36. Nb4 {[%clk 0:00:06]}  Bb3 {[%clk 0:00:02]} 37. Rc3 {[%clk 0:00:06]}  Be6 {[%clk 0:00:00]} 38. Nxa6 {[%clk 0:00:06]} 1-0


[Site "https://www.chess.com"]

[Event "Titled Tuesday Blitz June 20 Late 2023"]
[White "Haydon, David L"]
[Black "Makhnev, Denis"]
[WhiteFideId "415405"]
[BlackFideId "13707647"]
[WhiteElo "2326"]
[BlackElo "2515"]
[Result "0-1"]
[Round "11"]
[TimeControl "180+2"]
[Date "2023.06.20"]
[WhiteClock "0:00:03"]
[BlackClock "0:02:04"]
[Board "20"]

1. Nf3 {[%clk 0:02:59]}  Nf6 {[%clk 0:03:00]} 2. e3 {[%clk 0:02:58]}  Nc6 {[%clk 0:03:01]} 3. b3 {[%clk 0:02:58]}  g6 {[%clk 0:03:02]} 4. Bb2 {[%clk 0:02:58]}  Bg7 {[%clk 0:03:03]} 5. Be2 {[%clk 0:02:58]}  O-O {[%clk 0:03:04]} 6. c4 {[%clk 0:02:57]}  d6 {[%clk 0:03:05]} 7. d4 {[%clk 0:02:57]}  e5 {[%clk 0:03:05]} 8. Nc3 {[%clk 0:02:56]}  e4 {[%clk 0:03:05]} 9. Nd2 {[%clk 0:02:56]}  Re8 {[%clk 0:03:05]} 10. h3 {[%clk 0:02:56]}  h5 {[%clk 0:03:05]} 11. a3 {[%clk 0:02:53]}  Nb8 {[%clk 0:03:04]} 12. g4 {[%clk 0:02:50]}  hxg4 {[%clk 0:02:54]} 13. hxg4 {[%clk 0:02:49]}  d5 {[%clk 0:02:55]} 14. g5 {[%clk 0:02:47]}  Nh7 {[%clk 0:02:55]} 15. Nxd5 {[%clk 0:02:41]}  Nxg5 {[%clk 0:02:55]} 16. Qc2 {[%clk 0:02:40]}  Bf5 {[%clk 0:02:52]} 17. O-O-O {[%clk 0:02:37]}  c6 {[%clk 0:02:52]} 18. Nf4 {[%clk 0:02:36]}  Nd7 {[%clk 0:02:50]} 19. Rdg1 {[%clk 0:02:34]}  b5 {[%clk 0:02:50]} 20. Bg4 {[%clk 0:02:31]}  Qf6 {[%clk 0:02:48]} 21. Bxf5 {[%clk 0:02:23]}  Qxf5 {[%clk 0:02:49]} 22. Rg3 {[%clk 0:02:12]}  a5 {[%clk 0:02:48]} 23. Rhg1 {[%clk 0:02:10]}  Nh7 {[%clk 0:02:48]} 24. f3 {[%clk 0:01:41]}  Ndf6 {[%clk 0:02:48]} 25. fxe4 {[%clk 0:01:30]}  Nxe4 {[%clk 0:02:48]} 26. R3g2 {[%clk 0:01:25]}  Nhf6 {[%clk 0:02:42]} 27. Nf3 {[%clk 0:01:17]}  Ra7 {[%clk 0:02:33]} 28. Ne5 {[%clk 0:01:14]}  a4 {[%clk 0:02:33]} 29. cxb5 {[%clk 0:01:04]}  axb3 {[%clk 0:02:32]} 30. Qxb3 {[%clk 0:01:02]}  cxb5 {[%clk 0:02:32]} 31. Rxg6 {[%clk 0:00:56]}  Rc7+ {[%clk 0:02:32]} 32. Kd1 {[%clk 0:00:54]}  Ng4 {[%clk 0:02:12]} 33. Qxb5 {[%clk 0:00:18]}  Nef2+ {[%clk 0:02:05]} 34. Ke1 {[%clk 0:00:18]}  Rxe5 {[%clk 0:02:05]} 35. dxe5 {[%clk 0:00:17]}  fxg6 {[%clk 0:02:05]} 36. Qe8+ {[%clk 0:00:15]}  Kh7 {[%clk 0:02:04]} 37. Ke2 {[%clk 0:00:13]}  Rc2+ {[%clk 0:02:04]} 38. Kf3 {[%clk 0:00:13]}  Rxb2 {[%clk 0:02:04]} 39. Qc6 {[%clk 0:00:03]}  Nxe5+ {[%clk 0:02:04]} 0-1


[Site "https://www.chess.com"]